bitfinex-derivatives/quotes_BTCF0:USTF0_20250930
["timestamp","ask_amount","ask_price","bid_price","bid_amount"]
[1759261500024,4.25042686,114260.0,114250.0,0.0623566]
[1759261500229,4.25038686,114260.0,114250.0,0.0623566]
[1759261500734,0.0875044,114250.0,114240.0,0.04079247]
[1759261500930,0.49812948,114250.0,114240.0,0.12830457]
[1759261501231,3.07892948,114250.0,114240.0,0.12830457]
[1759261501830,3.07884948,114250.0,114240.0,0.12830457]
[1759261502331,3.07884948,114250.0,114240.0,0.54792246]
[1759261502531,3.07884948,114250.0,114240.0,0.13729738]
[1759261503228,0.49812948,114250.0,114240.0,0.13729738]
[1759261503723,3.07872948,114250.0,114240.0,0.13729738]
[1759261503928,0.49812948,114250.0,114240.0,0.04978528]
[1759261504133,0.0875044,114250.0,114240.0,0.07170528]
[1759261504329,3.07864948,114250.0,114240.0,0.04978528]
[1759261504836,3.07864948,114250.0,114240.0,0.04079247]
[1759261505233,3.07864948,114250.0,114240.0,0.02240934]
[1759261505429,0.0875044,114250.0,114240.0,0.52054602]
[1759261505629,3.07848948,114250.0,114240.0,0.54246602]
[1759261505825,3.07848948,114250.0,114240.0,0.04432934]
[1759261506238,0.49812948,114250.0,114240.0,0.02240934]
[1759261506737,0.49812948,114250.0,114240.0,0.13184074]
[1759261506930,3.07852948,114250.0,114240.0,0.13184074]
[1759261507531,0.49812948,114250.0,114240.0,0.13184074]
[1759261507736,3.07860948,114250.0,114240.0,0.13184074]
[1759261507941,3.33262069,114250.0,114240.0,0.13184074]
[1759261508541,3.33262069,114250.0,114240.0,0.04432934]
[1759261509442,0.75214069,114250.0,114240.0,0.04432934]
[1759261509645,3.33254069,114250.0,114240.0,0.04432934]
[1759261510242,3.33254069,114250.0,114240.0,0.13184084]
[1759261511341,3.33254069,114250.0,114240.0,0.54246592]
[1759261511543,3.33254069,114250.0,114240.0,0.13184084]
[1759261515745,3.33254069,114250.0,114240.0,0.10094737]
[1759261516143,0.75214069,114250.0,114240.0,0.12286737]
[1759261516342,0.34151511,114250.0,114240.0,0.12286737]
[1759261516542,2.92191511,114250.0,114240.0,1.30491753]
[1759261516846,3.33254019,114250.0,114240.0,1.30491753]
[1759261517249,3.33254019,114250.0,114240.0,1.31363876]
[1759261517542,3.33254019,114250.0,114240.0,0.54221368]
[1759261519448,3.24503629,114250.0,114240.0,0.54221368]
[1759261521450,3.24503629,114250.0,114240.0,0.1315886]
[1759261521652,3.24503629,114250.0,114240.0,0.54221368]
[1759261523146,0.66503629,114250.0,114240.0,0.54221368]
[1759261523449,3.24507629,114250.0,114240.0,0.54221368]
[1759261523645,2.02945121,114250.0,114240.0,0.54221368]
[1759261523847,2.83441121,114250.0,114240.0,1.31363876]
[1759261524154,1.05897121,114250.0,114240.0,1.79376086]
[1759261524350,1.05937121,114250.0,114240.0,1.79376086]
[1759261524653,1.05897121,114250.0,114240.0,1.79376086]
[1759261524851,1.05937121,114250.0,114240.0,1.79376086]
[1759261525652,0.80536,114250.0,114240.0,1.79376086]
[1759261526054,0.80536,114250.0,114240.0,1.7315849]
[1759261526249,0.61561121,114270.0,114260.0,0.1220957]
[1759261526250,2.44047629,114270.0,114260.0,0.1220957]
[1759261526455,3.24543629,114270.0,114260.0,0.6104712]
[1759261526642,3.24463629,114270.0,114260.0,0.6104712]
[1759261526846,3.24503629,114270.0,114260.0,0.6104712]
[1759261527442,3.24503629,114270.0,114260.0,0.59511489]
[1759261528051,0.66503629,114270.0,114260.0,0.59511489]
[1759261528249,1.7754,114270.0,114260.0,1.00573997]
[1759261528452,2.58036,114270.0,114260.0,1.78189628]
[1759261528643,0.41062508,114280.0,114270.0,0.1220882]
[1759261528846,3.35218508,114280.0,114270.0,0.59507862]
[1759261529048,2.99058508,114280.0,114270.0,0.59507862]
[1759261529243,2.99098508,114280.0,114270.0,0.59507862]
[1759261529644,3.84989156,114280.0,114270.0,0.07551534]
[1759261530052,4.66051664,114280.0,114270.0,0.01315]
[1759261530248,4.24989156,114280.0,114270.0,0.01315]
[1759261530649,0.0874893,114270.0,114260.0,0.07551534]
[1759261530847,1.26953946,114270.0,114260.0,0.07551534]
[1759261531452,1.66953946,114270.0,114260.0,0.01315]
[1759261531652,0.0874969,114260.0,114250.0,0.17839972]
[1759261531854,2.07446706,114260.0,114250.0,0.17839972]
[1759261532054,2.07446706,114260.0,114250.0,0.24075355]
[1759261532256,2.07446706,114260.0,114250.0,0.16300313]
[1759261532562,2.88509214,114260.0,114250.0,0.06235383]
[1759261532760,2.47446706,114260.0,114250.0,0.06235383]
[1759261533262,0.0875045,114250.0,114240.0,0.1632992]
[1759261533453,0.85892958,114250.0,114240.0,0.1632992]
[1759261538064,3.43884958,114250.0,114240.0,0.1632992]
[1759261540166,0.85892958,114250.0,114240.0,0.1632992]
[1759261540365,3.43888958,114250.0,114240.0,0.1632992]
[1759261541269,3.43888958,114250.0,114240.0,0.10094537]
[1759261542068,0.85892958,114250.0,114240.0,0.12239537]
[1759261542268,3.35134508,114250.0,114240.0,0.12239537]
[1759261543273,0.77142508,114250.0,114240.0,0.12239537]
[1759261543671,3.35134508,114250.0,114240.0,0.12239537]
[1759261543872,3.35134508,114250.0,114240.0,0.18474746]
[1759261544574,3.43884928,114250.0,114240.0,0.18474746]
[1759261544775,3.43884928,114250.0,114240.0,0.16329986]
[1759261546784,3.43888928,114250.0,114240.0,0.18474986]
[1759261547377,0.77142508,114250.0,114240.0,0.18474986]
[1759261547584,3.43888928,114250.0,114240.0,0.18474986]
[1759261547778,0.77142508,114250.0,114240.0,0.18474986]
[1759261548079,0.3608,114250.0,114240.0,0.18474986]
[1759261548384,2.54650508,114260.0,114250.0,0.1218842]
[1759261548585,2.94152,114260.0,114250.0,0.18423785]
[1759261548776,3.35214508,114260.0,114250.0,0.59486293]
[1759261548973,3.85026676,114260.0,114250.0,0.18423785]
[1759261549182,3.85026676,114260.0,114250.0,0.01312]
[1759261549378,4.25026676,114260.0,114250.0,0.01312]
[1759261549584,4.91490305,114260.0,114250.0,0.01312]
[1759261549881,4.50427797,114260.0,114250.0,0.01312]
[1759261551981,4.50427797,114260.0,114250.0,0.07547365]
[1759261555186,4.50427797,114260.0,114250.0,0.01312]
[1759261555385,4.25026676,114260.0,114250.0,0.01312]
[1759261555582,4.66089184,114260.0,114250.0,0.01312]
[1759261555780,4.66085184,114260.0,114250.0,0.01312]
[1759261556791,2.08097184,114260.0,114250.0,0.01312]
[1759261556989,4.66085184,114260.0,114250.0,0.01312]
[1759261558290,3.83984655,114260.0,114250.0,0.01312]
[1759261559090,1.25996655,114260.0,114250.0,0.01312]
[1759261559291,3.83988655,114260.0,114250.0,0.01312]
[1759261560188,1.25996655,114260.0,114250.0,0.01312]
[1759261560387,3.83984655,114260.0,114250.0,0.01312]
[1759261560688,1.25996655,114260.0,114250.0,0.01312]
[1759261560887,3.83984655,114260.0,114250.0,0.01312]
[1759261561393,0.85996655,114260.0,114250.0,0.09673365]
[1759261561595,0.85996655,114260.0,114250.0,0.58423785]
[1759261561596,2.13672,114260.0,114250.0,0.58423785]
[1759261561789,2.12249366,114260.0,114250.0,1.01050457]
[1759261561986,2.57988,114260.0,114250.0,0.93275415]
[1759261562186,2.99114995,114260.0,114250.0,0.59996832]
[1759261562381,3.35194995,114260.0,114250.0,0.59996832]
[1759261562885,2.94108,114260.0,114250.0,0.59996832]
[1759261563192,3.35194995,114260.0,114250.0,0.59996832]
[1759261563597,3.43944655,114260.0,114250.0,0.19996832]
[1759261563896,3.43944655,114260.0,114250.0,0.09120412]
[1759261564097,3.43944655,114260.0,114250.0,0.01312]
[1759261564288,3.43944655,114260.0,114250.0,0.07557021]
[1759261565189,3.43944655,114260.0,114250.0,0.18433441]
[1759261565383,3.43944655,114260.0,114250.0,0.16307441]
[1759261566193,3.43944655,114260.0,114250.0,0.18433441]
[1759261566393,3.43944655,114260.0,114250.0,0.09683021]
[1759261566590,3.43944655,114260.0,114250.0,0.07557021]
[1759261567687,3.43936655,114260.0,114250.0,0.09683021]
[1759261567894,0.85956655,114260.0,114250.0,0.18433441]
[1759261568092,3.43936655,114260.0,114250.0,0.18433441]
[1759261568598,0.85956655,114260.0,114250.0,0.18433441]
[1759261568790,3.43936655,114260.0,114250.0,0.18433441]
[1759261569292,0.77206995,114260.0,114250.0,0.18433441]
[1759261569492,2.54710995,114260.0,114250.0,0.58433441]
[1759261569689,3.35142995,114260.0,114250.0,0.58433441]
[1759261569893,3.35182995,114260.0,114250.0,0.58433441]
[1759261570196,3.35182995,114260.0,114250.0,0.5218842]
[1759261570399,3.35182995,114260.0,114250.0,0.5843314]
[1759261570793,3.35182995,114260.0,114250.0,0.58433108]
[1759261571788,2.99102995,114260.0,114250.0,0.94513108]
[1759261571992,2.17288483,114270.0,114260.0,0.1218766]
[1759261572193,2.97756483,114270.0,114260.0,0.19996072]
[1759261572401,2.99138995,114270.0,114260.0,0.59996072]
[1759261572699,2.99058995,114270.0,114260.0,0.59996072]
[1759261572996,0.80508,114270.0,114260.0,1.01083067]
[1759261573304,1.21594995,114270.0,114260.0,0.59996072]
[1759261574303,0.80508,114270.0,114260.0,0.59996072]
[1759261574602,0.80508,114270.0,114260.0,1.35592402]
[1759261574805,0.80468,114270.0,114260.0,1.35592402]
[1759261575001,0.80508,114270.0,114260.0,1.35592402]
[1759261575501,0.80508,114270.0,114260.0,1.37163067]
[1759261575702,0.80468,114270.0,114260.0,1.37163067]
[1759261575903,0.80508,114270.0,114260.0,1.37163067]
[1759261576304,0.80508,114270.0,114260.0,0.96076072]
[1759261576503,0.80508,114270.0,114260.0,1.37163067]
[1759261576900,0.80508,114270.0,114260.0,1.44303216]
[1759261577105,1.21594995,114270.0,114260.0,0.59327809]
[1759261577494,1.21594995,114270.0,114260.0,0.95407809]
[1759261577998,1.21594995,114270.0,114260.0,0.59327809]
[1759261578300,1.21594995,114270.0,114260.0,0.95407809]
[1759261578499,0.80508,114270.0,114260.0,0.95407809]
[1759261579304,0.805,114270.0,114260.0,0.95407809]
[1759261579500,0.805,114270.0,114260.0,1.03216221]
[1759261580206,0.805,114270.0,114260.0,1.44303216]
[1759261581109,0.0004,114270.0,114260.0,1.44303216]
[1759261581307,0.805,114270.0,114260.0,1.44303216]
[1759261581609,2.18570995,114290.0,114280.0,0.123993]
[1759261581805,2.5794,114290.0,114280.0,0.123993]
[1759261582008,2.99026995,114290.0,114280.0,0.123993]
[1759261582210,0.41166995,114290.0,114280.0,0.18629421]
[1759261582404,2.99106995,114290.0,114280.0,0.18629421]
[1759261582805,3.35186995,114290.0,114280.0,0.18629421]
[1759261583303,3.43934525,114290.0,114280.0,0.03651]
[1759261584113,3.43934525,114290.0,114280.0,0.09881121]
[1759261584417,3.43934525,114290.0,114280.0,0.03651]
[1759261584608,3.43934525,114290.0,114280.0,0.18629421]
[1759261585120,3.43934525,114290.0,114280.0,0.123993]
[1759261590018,3.43914525,114290.0,114280.0,0.123993]
[1759261591618,3.43906525,114290.0,114280.0,0.18629421]
[1759261592119,0.85994525,114290.0,114280.0,0.18629421]
[1759261592322,3.43906525,114290.0,114280.0,0.18629421]
[1759261593610,0.85994525,114290.0,114280.0,0.18629421]
[1759261593814,3.43906525,114290.0,114280.0,0.18629421]
[1759261594118,3.43906525,114290.0,114280.0,0.19504412]
[1759261594518,0.3616,114290.0,114280.0,0.19504412]
[1759261595015,2.99074995,114290.0,114280.0,0.19504412]
[1759261595725,2.99074995,114290.0,114280.0,0.49354291]
[1759261595921,2.99070995,114290.0,114280.0,0.49354291]
[1759261596321,2.57984,114290.0,114280.0,0.49354291]
[1759261596716,2.98990995,114290.0,114280.0,0.49354291]
[1759261596921,0.41126995,114290.0,114280.0,0.49354291]
[1759261597223,1.21566995,114290.0,114280.0,0.49354291]
[1759261597423,1.21566995,114290.0,114280.0,0.57162703]
[1759261597916,0.0004,114290.0,114280.0,0.57162703]
[1759261598113,0.8048,114290.0,114280.0,0.57162703]
[1759261598821,1.21566995,114290.0,114280.0,0.57162703]
[1759261600325,0.0004,114290.0,114280.0,0.57162703]
[1759261600519,1.78993733,114300.0,114290.0,0.087475]
[1759261600826,1.78993733,114300.0,114290.0,0.53485495]
[1759261600827,1.79069733,114300.0,114290.0,0.53485495]
[1759261601120,2.59505733,114300.0,114290.0,0.20206912]
[1759261601325,2.59505733,114300.0,114290.0,0.56286912]
[1759261601528,0.01613733,114300.0,114290.0,0.56286912]
[1759261601726,0.82045733,114300.0,114290.0,0.56286912]
[1759261601918,1.23132728,114300.0,114290.0,0.56286912]
[1759261602414,0.42700728,114300.0,114290.0,0.56286912]
[1759261602614,3.00592728,114300.0,114290.0,0.484785]
[1759261602914,2.59505733,114300.0,114290.0,0.484785]
[1759261603114,2.59505733,114300.0,114290.0,0.20206912]
[1759261603321,3.00592728,114300.0,114290.0,0.123985]
[1759261605228,3.00592728,114300.0,114290.0,0.18635446]
[1759261605429,2.59505733,114300.0,114290.0,0.18635446]
[1759261605627,3.00592728,114300.0,114290.0,0.18635446]
[1759261606528,3.09339628,114300.0,114290.0,0.18635446]
[1759261606729,3.45419628,114300.0,114290.0,0.09887946]
[1759261607131,3.86506623,114300.0,114290.0,0.09887946]
[1759261607432,3.86506623,114300.0,114290.0,0.18635586]
[1759261607628,3.45419628,114300.0,114290.0,0.18635586]
[1759261608326,3.36652728,114300.0,114290.0,0.18635586]
[1759261609529,3.00572728,114300.0,114290.0,0.18635586]
[1759261611028,3.00564728,114300.0,114290.0,0.18635586]
[1759261613233,0.42700728,114300.0,114290.0,0.18635586]
[1759261613433,3.00560728,114300.0,114290.0,0.18635586]
[1759261613637,0.42700728,114300.0,114290.0,0.18635586]
[1759261613836,3.00560728,114300.0,114290.0,0.18635586]
[1759261614435,0.42700728,114300.0,114290.0,0.18635586]
[1759261614636,3.00560728,114300.0,114290.0,0.18635586]
[1759261616741,2.59473733,114300.0,114290.0,0.18635586]
[1759261617039,3.00560728,114300.0,114290.0,0.18635586]
[1759261617236,3.00560728,114300.0,114290.0,0.1239864]
[1759261617926,0.42700728,114300.0,114290.0,0.1239864]
[1759261618132,3.00552728,114300.0,114290.0,0.1239864]
[1759261620238,3.41548527,114300.0,114290.0,0.1239864]
[1759261620537,3.41548527,114300.0,114290.0,0.53440037]
[1759261621639,2.59465733,114300.0,114290.0,0.1239882]
[1759261621840,3.41548527,114300.0,114290.0,0.1239882]
[1759261623242,2.59465733,114300.0,114290.0,0.1239882]
[1759261623431,3.41544527,114300.0,114290.0,0.1239882]
[1759261625540,2.68208793,114300.0,114290.0,0.1239882]
[1759261625839,3.50291587,114300.0,114290.0,0.1239882]
[1759261626040,3.41544527,114300.0,114290.0,0.1239882]
[1759261626342,3.41544527,114300.0,114290.0,0.20207232]
[1759261626537,0.83696527,114300.0,114290.0,0.20207232]
[1759261626741,2.59461733,114300.0,114290.0,0.20207232]
[1759261627039,3.41544527,114300.0,114290.0,0.20207232]
[1759261627438,3.50291587,114300.0,114290.0,0.20207232]
[1759261627836,3.41544527,114300.0,114290.0,0.20207232]
[1759261628533,3.41540527,114300.0,114290.0,0.20207232]
[1759261629141,0.83696527,114300.0,114290.0,0.20207232]
[1759261629336,3.41540527,114300.0,114290.0,0.20207232]
[1759261629542,3.41540527,114300.0,114290.0,0.61248629]
[1759261630544,2.59457733,114300.0,114290.0,0.61248629]
[1759261630744,3.41540527,114300.0,114290.0,0.61248629]
[1759261631147,3.41540527,114300.0,114290.0,0.20207232]
[1759261631343,0.83696527,114300.0,114290.0,0.61248629]
[1759261631544,3.41540527,114300.0,114290.0,0.61248629]
[1759261631749,0.4265513,114300.0,114290.0,0.20207232]
[1759261632044,3.41540527,114300.0,114290.0,0.61248629]
[1759261632545,2.59457733,114300.0,114290.0,0.61248629]
[1759261632839,3.41540527,114300.0,114290.0,0.61248629]
[1759261633746,3.50287577,114300.0,114290.0,0.20207232]
[1759261634341,3.41540527,114300.0,114290.0,0.20207232]
[1759261634541,3.50287577,114300.0,114290.0,0.20207232]
[1759261634746,3.41540527,114300.0,114290.0,0.20207232]
[1759261635551,4.27408974,114300.0,114290.0,0.09141412]
[1759261635742,4.67408974,114300.0,114290.0,0.09141412]
[1759261635942,4.67408974,114300.0,114290.0,0.01333]
[1759261636243,3.45171343,114300.0,114290.0,0.01333]
[1759261636447,4.68295534,114300.0,114290.0,0.07586599]
[1759261638552,0.0874769,114290.0,114280.0,0.09141412]
[1759261638849,1.26910484,114290.0,114280.0,0.09141412]
[1759261639352,1.26910484,114290.0,114280.0,0.01333]
[1759261639652,3.84754484,114290.0,114280.0,0.01333]
[1759261639847,3.84754484,114290.0,114280.0,0.07583112]
[1759261640449,3.84758484,114290.0,114280.0,0.07583112]
[1759261640951,1.26910484,114290.0,114280.0,0.16331462]
[1759261641148,3.84758484,114290.0,114280.0,0.07583112]
[1759261641348,1.26910484,114290.0,114280.0,0.07583112]
[1759261641544,4.11318484,114290.0,114280.0,0.07583112]
[1759261642452,4.11318484,114290.0,114280.0,0.07580319]
[1759261644051,4.51322484,114290.0,114280.0,0.07580319]
[1759261644250,4.51326484,114290.0,114280.0,0.07580319]
[1759261644457,4.24766484,114290.0,114280.0,0.07580319]
[1759261644744,4.24766484,114290.0,114270.0,0.06247319]
[1759261644745,0.087484,114280.0,114270.0,0.06247319]
[1759261644951,1.67952591,114280.0,114270.0,0.01311]
[1759261645450,3.84767194,114280.0,114270.0,0.01311]
[1759261645851,1.26911194,114280.0,114270.0,0.01311]
[1759261646151,3.84767194,114280.0,114270.0,0.01311]
[1759261646347,4.25808591,114280.0,114270.0,0.01311]
[1759261646548,4.25812591,114280.0,114270.0,0.01311]
[1759261646758,3.84771194,114280.0,114270.0,0.01311]
[1759261646944,3.84771194,114280.0,114270.0,0.036]
[1759261647454,1.26911194,114280.0,114270.0,0.036]
[1759261647650,3.84775194,114280.0,114270.0,0.036]
[1759261648352,3.91650997,114280.0,114270.0,0.036]
[1759261649046,3.09568203,114280.0,114270.0,0.01311]
[1759261649256,3.91658997,114280.0,114270.0,0.01311]
[1759261649645,3.506176,114280.0,114270.0,0.01311]
[1759261649952,3.84787194,114280.0,114270.0,0.036]
[1759261650253,3.84787194,114280.0,114270.0,0.1234914]
[1759261650452,4.11347194,114280.0,114270.0,0.1234914]
[1759261651547,1.53471194,114280.0,114270.0,0.1234914]
[1759261651748,4.11351194,114280.0,114270.0,0.1234914]
[1759261652752,1.53471194,114280.0,114270.0,0.1234914]
[1759261652947,4.11351194,114280.0,114270.0,0.1234914]
[1759261655058,3.292684,114280.0,114270.0,0.1234914]
[1759261655256,4.11351194,114280.0,114270.0,0.1234914]
[1759261656451,4.11351194,114280.0,114270.0,0.036]
[1759261656652,4.11355194,114280.0,114270.0,0.036]
[1759261658160,4.11355194,114280.0,114270.0,0.1234917]
[1759261659548,4.11355194,114280.0,114270.0,0.036]
[1759261660152,3.292724,114280.0,114270.0,0.036]
[1759261660354,1.53471194,114280.0,114270.0,0.036]
[1759261660559,4.11355194,114280.0,114270.0,0.036]
[1759261661457,1.53471194,114280.0,114270.0,0.036]
[1759261661659,0.2656,114280.0,114270.0,0.93390497]
[1759261661859,3.25489397,114280.0,114270.0,0.59629535]
[1759261662260,3.25529397,114280.0,114270.0,0.59629535]
[1759261663760,0.266,114280.0,114270.0,0.59629535]
[1759261664057,1.56797817,114280.0,114270.0,0.59629535]
[1759261665058,1.56797817,114280.0,114270.0,0.18588138]
[1759261665259,1.56797817,114280.0,114270.0,0.59629535]
[1759261666061,1.92877817,114280.0,114270.0,0.18588138]
[1759261666262,1.92877817,114280.0,114270.0,0.59629535]
[1759261666859,3.70349797,114280.0,114270.0,0.59629535]
[1759261668363,3.70349797,114280.0,114270.0,0.18588138]
[1759261668559,4.11391194,114280.0,114270.0,0.18588138]
[1759261668862,3.70349797,114280.0,114270.0,0.59629535]
[1759261671565,3.70341797,114280.0,114270.0,0.59629535]
[1759261672270,3.70341797,114280.0,114270.0,0.53390497]
[1759261672969,3.292964,114280.0,114270.0,0.53390497]
[1759261673162,3.70337797,114280.0,114270.0,0.53390497]
[1759261673869,1.12469797,114280.0,114270.0,0.53390497]
[1759261674165,3.70337797,114280.0,114270.0,0.53390497]
[1759261675870,0.714284,114280.0,114270.0,0.53390497]
[1759261676068,2.04072,114280.0,114270.0,1.78320306]
[1759261676371,2.84464,114280.0,114270.0,1.70511894]
[1759261676672,2.84424,114280.0,114270.0,1.29470497]
[1759261676870,2.84464,114280.0,114270.0,1.29470497]
[1759261677064,2.84464,114280.0,114270.0,1.37284397]
[1759261677457,0.266,114280.0,114270.0,1.78325794]
[1759261677662,1.06992,114280.0,114270.0,1.78325794]
[1759261677863,0.266,114280.0,114270.0,1.78325794]
[1759261678065,1.06992,114280.0,114270.0,1.78325794]
[1759261678768,0.80428,114280.0,114270.0,1.70511894]
[1759261679071,0.80428,114280.0,114270.0,1.81401355]
[1759261679256,0.80428,114280.0,114270.0,0.99318561]
[1759261679462,0.80428,114280.0,114270.0,1.81401355]
[1759261679970,0.0004,114280.0,114270.0,1.81401355]
[1759261680171,0.80428,114280.0,114270.0,1.81401355]
[1759261680463,0.80428,114280.0,114270.0,0.99318561]
[1759261680668,0.80428,114280.0,114270.0,1.81401355]
[1759261681578,0.80388,114280.0,114270.0,1.81401355]
[1759261681866,0.0004,114280.0,114270.0,1.81401355]
[1759261682070,0.80384,114280.0,114270.0,1.81401355]
[1759261682272,0.80424,114280.0,114270.0,1.81388409]
[1759261683271,0.80384,114280.0,114270.0,1.81388409]
[1759261683472,0.80424,114280.0,114270.0,1.81388409]
[1759261685668,0.0004,114280.0,114270.0,1.89194472]
[1759261685869,0.44552,114280.0,114270.0,1.89194472]
[1759261686071,0.44512,114280.0,114270.0,1.78305011]
[1759261686264,0.44552,114280.0,114270.0,1.78305011]
[1759261686666,0.0004,114280.0,114270.0,1.78305011]
[1759261686974,0.28173733,114300.0,114290.0,0.1236675]
[1759261687169,0.65445733,114300.0,114290.0,0.95725468]
[1759261687377,0.65485733,114300.0,114290.0,0.95725468]
[1759261687879,0.74232723,114300.0,114290.0,0.95725468]
[1759261688484,0.70795683,114300.0,114290.0,2.05286598]
[1759261688775,0.69745656,114300.0,114290.0,1.32332813]
[1759261689076,0.69745656,114300.0,114290.0,1.73367737]
[1759261689280,0.69785656,114300.0,114290.0,1.32332813]
[1759261689464,0.0874546,114320.0,114310.0,0.02309]
[1759261689776,0.9083746,114320.0,114310.0,0.56460232]
[1759261690077,0.9083746,114320.0,114310.0,0.97495156]
[1759261690375,0.82092,114320.0,114310.0,0.97495156]
[1759261690576,0.9083746,114320.0,114310.0,0.97495156]
[1759261691172,0.0882546,114320.0,114310.0,0.97495156]
[1759261691373,0.9096146,114320.0,114310.0,0.97495156]
[1759261691782,0.0882546,114320.0,114310.0,0.97495156]
[1759261691976,0.9095746,114320.0,114310.0,0.97495156]
[1759261693780,0.9095746,114320.0,114310.0,1.0457062]
[1759261694476,0.9095746,114320.0,114310.0,1.05468277]
[1759261694678,0.9095746,114320.0,114310.0,0.992319]
[1759261695869,0.0008,114320.0,114310.0,1.05468277]
[1759261696180,0.8214,114320.0,114310.0,1.05468277]
[1759261696772,0.8214,114320.0,114310.0,0.992319]
[1759261697072,0.9088546,114320.0,114310.0,1.05468277]
[1759261697276,0.9088546,114320.0,114310.0,0.992319]
[1759261698782,0.8983559,114320.0,114310.0,0.58196976]
[1759261699081,1.30870514,114320.0,114310.0,0.58196976]
[1759261701486,1.30870514,114320.0,114310.0,0.49450756]
[1759261701784,1.70870514,114320.0,114310.0,0.15519498]
[1759261701979,2.06950514,114320.0,114310.0,0.08385464]
[1759261702184,2.06950514,114320.0,114310.0,0.0131]
[1759261703184,3.0436546,114320.0,114310.0,0.035]
[1759261703389,0.85860384,114320.0,114310.0,0.035]
[1759261703588,3.0443346,114320.0,114310.0,0.035]
[1759261703886,0.85860384,114320.0,114310.0,0.035]
[1759261704188,3.45508384,114320.0,114310.0,0.035]
[1759261704584,2.2228146,114320.0,114310.0,0.1224622]
[1759261704785,3.45564384,114320.0,114310.0,0.1224622]
[1759261704988,3.45580384,114320.0,114310.0,0.1224622]
[1759261705182,0.448252,114330.0,114320.0,0.01273]
[1759261705385,3.045892,114330.0,114320.0,0.03463]
[1759261705582,0.85940124,114330.0,114320.0,0.03463]
[1759261705892,2.223212,114330.0,114320.0,0.1220846]
[1759261706187,3.045132,114330.0,114320.0,0.1220846]
[1759261706387,0.448652,114330.0,114320.0,0.1220846]
[1759261706588,1.271092,114330.0,114320.0,0.1220846]
[1759261706790,0.910692,114330.0,114320.0,0.1220846]
[1759261707290,2.684732,114330.0,114320.0,0.1220846]
[1759261709192,2.684732,114330.0,114320.0,0.13098716]
[1759261709493,0.087852,114330.0,114320.0,0.13098716]
[1759261709682,0.910492,114330.0,114320.0,0.13098716]
[1759261710693,0.910172,114330.0,114320.0,0.13098716]
[1759261711494,0.910172,114330.0,114320.0,0.1220846]
[1759261711690,1.270972,114330.0,114320.0,0.03463]
[1759261711893,1.68132124,114330.0,114320.0,0.03463]
[1759261712290,2.09167048,114330.0,114320.0,0.01273]
[1759261712590,1.68132124,114330.0,114320.0,0.01273]
[1759261712791,1.68132124,114330.0,114320.0,0.03463]
[1759261714091,1.68132124,114330.0,114320.0,0.09699377]
[1759261717000,0.85900124,114330.0,114320.0,0.09699377]
[1759261717201,3.45524124,114330.0,114320.0,0.09699377]
[1759261721501,0.448652,114330.0,114320.0,0.09699377]
[1759261721697,3.72036124,114330.0,114320.0,0.09699377]
[1759261722790,3.72036124,114330.0,114320.0,0.07509377]
[1759261724397,3.72036124,114330.0,114320.0,0.09699377]
[1759261724994,3.72036124,114330.0,114320.0,0.07509377]
[1759261724995,1.53495048,114330.0,114320.0,0.07509377]
[1759261725200,1.93495048,114330.0,114320.0,0.07509377]
[1759261725600,4.12008124,114330.0,114320.0,0.09699377]
[1759261725802,1.52460124,114330.0,114320.0,0.09699377]
[1759261726001,4.12020124,114330.0,114320.0,0.09699377]
[1759261726704,1.52460124,114330.0,114320.0,0.09699377]
[1759261726903,4.12012124,114330.0,114320.0,0.09699377]
[1759261727201,4.53047048,114330.0,114320.0,0.07509377]
[1759261727408,4.53047048,114330.0,114320.0,0.01273]
[1759261727707,4.26495048,114330.0,114320.0,0.01273]
[1759261727904,4.26519048,114330.0,114320.0,0.01273]
[1759261728901,4.26523048,114330.0,114320.0,0.01273]
[1759261729099,1.66935048,114330.0,114320.0,0.01273]
[1759261729308,4.26507048,114330.0,114320.0,0.01273]
[1759261731309,1.66935048,114330.0,114320.0,0.01273]
[1759261731504,4.26511048,114330.0,114320.0,0.01273]
[1759261731803,4.26499048,114330.0,114320.0,0.01273]
[1759261732801,4.26515048,114330.0,114320.0,0.03479]
[1759261733300,3.85480124,114330.0,114320.0,0.01273]
[1759261733707,4.26515048,114330.0,114320.0,0.01273]
[1759261734110,3.444452,114330.0,114320.0,0.01273]
[1759261734305,4.26523048,114330.0,114320.0,0.01273]
[1759261734709,4.26539048,114330.0,114320.0,0.01273]
[1759261735004,1.66935048,114330.0,114320.0,0.01273]
[1759261735417,4.26543048,114330.0,114320.0,0.01273]
[1759261735712,1.66935048,114330.0,114320.0,0.01273]
[1759261735907,4.26543048,114330.0,114320.0,0.01273]
[1759261736111,4.26551048,114330.0,114320.0,0.01273]
[1759261737111,1.66935048,114330.0,114320.0,0.01273]
[1759261737416,4.26551048,114330.0,114320.0,0.01273]
[1759261737606,4.26559048,114330.0,114320.0,0.01273]
[1759261737913,1.66935048,114330.0,114320.0,0.01273]
[1759261738213,4.26555048,114330.0,114320.0,0.01273]
[1759261738513,1.66935048,114330.0,114320.0,0.01273]
[1759261738812,3.85520124,114330.0,114320.0,0.01273]
[1759261739114,1.25900124,114330.0,114320.0,0.18460647]
[1759261739312,0.85900124,114330.0,114320.0,0.18460647]
[1759261739512,2.63312124,114330.0,114320.0,0.18460647]
[1759261739701,3.45476124,114330.0,114320.0,0.1222427]
[1759261740307,3.45516124,114330.0,114320.0,0.1222427]
[1759261740507,3.44094384,114330.0,114320.0,0.1222427]
[1759261741621,3.44094384,114330.0,114320.0,0.1001827]
[1759261742014,3.44094384,114330.0,114320.0,0.1222427]
[1759261742320,3.44085514,114330.0,114320.0,0.1222427]
[1759261744622,3.0305946,114330.0,114320.0,0.1222427]
[1759261744821,3.44085514,114330.0,114320.0,0.1222427]
[1759261746224,0.4344346,114330.0,114320.0,0.1222427]
[1759261746523,3.44121514,114330.0,114320.0,0.93250324]
[1759261746717,3.44157514,114330.0,114320.0,0.93250324]
[1759261746917,3.0313146,114330.0,114320.0,0.93250324]
[1759261747119,3.44157514,114330.0,114320.0,0.93250324]
[1759261747324,3.36834054,114330.0,114320.0,0.93250324]
[1759261747525,3.36826054,114330.0,114320.0,0.93250324]
[1759261748125,2.958,114330.0,114320.0,0.93250324]
[1759261748326,3.36826054,114330.0,114320.0,0.93250324]
[1759261749028,3.00746054,114330.0,114320.0,0.93250324]
[1759261749326,3.00730054,114330.0,114320.0,0.93250324]
[1759261749928,0.0004,114330.0,114320.0,1.00522554]
[1759261750128,2.63254534,114340.0,114330.0,0.122795]
[1759261750326,3.45578534,114340.0,114330.0,0.59550964]
[1759261750527,3.45498534,114340.0,114330.0,0.59550964]
[1759261751022,3.45538534,114340.0,114330.0,0.59550964]
[1759261752231,3.45538534,114340.0,114330.0,0.1852491]
[1759261752436,3.0451248,114340.0,114330.0,0.59550964]